fUST/lending_fUST_20250206
["ID","MTS","AMOUNT","RATE_DAILY","PERIOD"]
[351869521,1738825854988,-4042.47,0.0001452,2]
[351869523,1738825854998,-2055.52,0.0001452,2]
[351869525,1738825855007,-529.96,0.0001452,2]
[351869527,1738825855017,-931.34,0.0001452,2]
[351869529,1738825855027,-690.97,0.0001452,2]
[351869531,1738825855037,-1864.33,0.0001452,2]
[351869533,1738825855047,-2520.04,0.0001452,2]
[351869535,1738825855057,-1724.05,0.0001452,2]
[351869537,1738825855067,-500.0,0.0001452,2]
[351869539,1738825855077,-500.0,0.0001452,2]
[351869541,1738825855086,-786.52,0.0001452,2]
[351869543,1738825855096,-500.0,0.0001452,2]
[351869544,1738825855106,-4900.42,0.0001452,2]
[351869546,1738825855121,-1274.05,0.0001452,2]
[351869549,1738825855131,-500.0,0.0001452,2]
[351869550,1738825855140,-547.89,0.0001452,2]
[351869553,1738825855150,-425.23565614,0.0001452,2]
[351869555,1738825855160,-500.0,0.0001452,2]
[351869557,1738825855171,-500.0,0.0001452,2]
[351869559,1738825855184,-500.0,0.0001452,2]
[351869561,1738825855193,-1130.0,0.0001452,2]
[351869563,1738825855204,-3673.51,0.0001452,2]
[351869565,1738825855213,-1869.5,0.0001452,2]
[351869567,1738825855223,-500.0,0.0001452,2]
[351869569,1738825855232,-1788.71,0.0001452,2]
[351869571,1738825855242,-500.0,0.0001452,2]
[351869573,1738825855251,-500.0,0.0001452,2]
[351869575,1738825855263,-895.25,0.0001452,2]
[351869577,1738825855274,-4444.61,0.0001452,2]
[351869579,1738825855283,-601.14,0.0001452,2]
[351869581,1738825855292,-500.0,0.0001452,2]
[351869583,1738825855302,-500.0,0.0001452,2]
[351869585,1738825855313,-819.49,0.0001452,2]
[351869587,1738825855323,-2035.28,0.0001452,2]
[351869589,1738825855334,-1557.87,0.0001452,2]
[351869591,1738825855343,-500.0,0.0001452,2]
[351869593,1738825855354,-9265.9,0.0001452,2]
[351869595,1738825855366,-500.0,0.0001452,2]
[351869597,1738825855376,-500.0,0.0001452,2]
[351869599,1738825855386,-500.0,0.0001452,2]
[351869601,1738825855396,-398.48157826,0.0001452,2]
[351869603,1738825855405,-55137.81,0.0001452,2]
[351869605,1738825855415,-500.0,0.0001452,2]
[351869607,1738825855424,-500.0,0.0001452,2]
[351869609,1738825855434,-925.06,0.0001452,2]
[351869611,1738825855443,-500.0,0.0001452,2]
[351869613,1738825855453,-500.0,0.0001452,2]
[351869615,1738825855464,-2866.45,0.0001452,2]
[351869617,1738825855474,-687.62,0.0001452,2]
[351869619,1738825855483,-500.0,0.0001452,2]
[351869621,1738825855493,-2324.04,0.0001452,2]
[351869623,1738825855502,-548.52,0.0001452,2]
[351869625,1738825855511,-2155.77,0.0001452,2]
[351869627,1738825855521,-1645.36,0.0001452,2]
[351869629,1738825855531,-700.0,0.0001452,2]
[351869631,1738825855541,-500.0,0.0001452,2]
[351869633,1738825855551,-5389.6,0.0001452,2]
[351869635,1738825855561,-151.0,0.0001452,2]
[351869637,1738825855570,-500.0,0.0001452,2]
[351869639,1738825855579,-500.0,0.0001452,2]
[351869641,1738825855589,-19603.76,0.0001452,2]
[351869643,1738825855598,-500.0,0.0001452,2]
[351869645,1738825855612,-2713.5,0.0001452,2]
[351869647,1738825855622,-512.22,0.0001452,2]
[351869649,1738825855633,-500.0,0.0001452,2]
[351869651,1738825855642,-3051.12043768,0.00014563,2]
[351869653,1738825855653,-2073.00867391,0.0001459,2]
[351869655,1738825855663,-151.0,0.00014592,2]
[351869657,1738825855674,-199.653737,0.00014592,2]
[351869659,1738825855684,-199.653737,0.00014592,2]
[351869661,1738825855694,-622.0,0.000146,2]
[351869663,1738825855704,-500.0,0.00014657,2]
[351869665,1738825855714,-500.0,0.00014657,2]
[351869667,1738825855723,-500.0,0.00014657,2]
[351869669,1738825855733,-500.0,0.00014657,2]
[351869671,1738825855742,-796.27,0.00014657,2]
[351869673,1738825855751,-500.0,0.00014657,2]
[351869675,1738825855762,-500.0,0.00014657,2]
[351869677,1738825855772,-500.0,0.00014657,2]
[351869679,1738825855783,-500.0,0.00014657,2]
[351869681,1738825855793,-500.0,0.00014657,2]
[351869683,1738825855804,-500.0,0.00014657,2]
[351869685,1738825855814,-500.0,0.00014657,2]
[351869687,1738825855824,-500.0,0.00014657,2]
[351869689,1738825855834,-500.0,0.00014657,2]
[351869691,1738825855844,-500.0,0.00014657,2]
[351869693,1738825855854,-500.0,0.00014657,2]
[351869695,1738825855867,-500.0,0.00014657,2]
[351869697,1738825855878,-500.0,0.00014657,2]
[351869699,1738825855888,-500.0,0.00014657,2]
[351869701,1738825855897,-1663.81,0.00014657,2]
[351869703,1738825855908,-506.64,0.00014657,2]
[351869705,1738825855918,-1635.87,0.00014657,2]
[351869707,1738825855927,-892.58,0.00014657,2]
[351869709,1738825855937,-500.0,0.00014657,2]
[351869711,1738825855946,-647.02,0.00014657,2]
[351869712,1738825855955,-500.0,0.00014657,2]
[351869714,1738825855965,-500.0,0.00014657,2]
[351869716,1738825855975,-515.26,0.00014657,2]
[351869719,1738825855984,-500.0,0.00014657,2]
[351869721,1738825855994,-500.0,0.00014657,2]
[351869723,1738825856004,-500.0,0.00014657,2]
[351869724,1738825856014,-500.0,0.00014657,2]
[351869726,1738825856024,-1205.63,0.00014657,2]
[351869728,1738825856033,-500.0,0.00014657,2]
[351869730,1738825856043,-1952.69,0.00014657,2]
[351869732,1738825856053,-500.0,0.00014657,2]
[351869735,1738825856062,-500.0,0.00014657,2]
[351869737,1738825856072,-500.0,0.00014657,2]
[351869739,1738825856082,-776.18,0.00014657,2]
[351869741,1738825856091,-500.0,0.00014657,2]
[351869743,1738825856102,-556.32,0.00014657,2]
[351869745,1738825856114,-1914.57,0.00014657,2]
[351869747,1738825856124,-804.02,0.00014657,2]
[351869749,1738825856133,-500.0,0.00014657,2]
[351869751,1738825856143,-500.0,0.00014657,2]
[351869753,1738825856152,-764.63,0.00014657,2]
[351869754,1738825856162,-932.09,0.00014657,2]
[351869756,1738825856172,-500.0,0.00014657,2]
[351869758,1738825856182,-500.0,0.00014657,2]
[351869760,1738825856194,-703.39,0.00014657,2]
[351869762,1738825856204,-506.27,0.00014657,2]
[351869764,1738825856214,-500.0,0.00014657,2]
[351869767,1738825856225,-1302.83,0.00014657,2]
[351869769,1738825856235,-679.45,0.00014657,2]
[351869771,1738825856244,-500.0,0.00014657,2]
[351869773,1738825856253,-500.0,0.00014657,2]
[351869775,1738825856264,-648.58,0.00014657,2]
[351869777,1738825856273,-500.0,0.00014657,2]
[351869778,1738825856283,-265.318368,0.00014657,2]
[351869780,1738825856293,-500.0,0.00014657,2]
[351869783,1738825856303,-500.0,0.00014657,2]
[351869785,1738825856312,-976.08,0.00014657,2]
[351869786,1738825856322,-1584.55,0.00014657,2]
[351869788,1738825856331,-536.77,0.00014657,2]
[351869790,1738825856341,-500.0,0.00014657,2]
[351869792,1738825856350,-515.81,0.00014657,2]
[351869794,1738825856361,-500.0,0.00014657,2]
[351869796,1738825856370,-500.0,0.00014657,2]
[351869798,1738825856379,-500.0,0.00014657,2]
[351869800,1738825856389,-500.0,0.00014657,2]
[351869802,1738825856399,-859.86,0.00014657,2]
[351869804,1738825856408,-1650.47,0.00014657,2]
[351869806,1738825856418,-1397.76,0.00014657,2]
[351869808,1738825856428,-500.0,0.00014657,2]
[351869810,1738825856437,-1515.33,0.00014657,2]
[351869812,1738825856446,-157.042011,0.00014657,2]
[351869814,1738825856456,-500.0,0.00014657,2]
[351869816,1738825856466,-500.0,0.00014657,2]
[351869818,1738825856475,-190.312673,0.00014657,2]
[351869820,1738825856484,-5965.69,0.00014657,2]
[351869822,1738825856494,-500.0,0.00014657,2]
[351869823,1738825856504,-521.34,0.00014657,2]
[351869824,1738825856513,-732.15,0.00014657,2]
[351869825,1738825856523,-190.312673,0.00014657,2]
[351869826,1738825856532,-860.72,0.00014657,2]
[351869827,1738825856542,-170.64754,0.00014657,2]
[351869828,1738825856552,-500.0,0.00014657,2]
[351869829,1738825856561,-500.0,0.00014657,2]
[351869830,1738825856571,-1976.58,0.00014657,2]
[351869831,1738825856580,-500.0,0.00014657,2]
[351869833,1738825856590,-151.0,0.00014657,2]
[351869835,1738825856600,-2682.31,0.00014657,2]
[351869837,1738825856610,-500.0,0.00014657,2]
[351869839,1738825856620,-596.18,0.00014657,2]
[351869841,1738825856630,-500.0,0.00014657,2]
[351869843,1738825856639,-500.0,0.00014657,2]
[351869845,1738825856648,-500.0,0.00014657,2]
[351869847,1738825856657,-969.79,0.00014657,2]
[351869849,1738825856667,-739.06,0.00014657,2]
[351869851,1738825856676,-500.0,0.00014657,2]
[351869853,1738825856685,-606.33,0.00014657,2]
[351869855,1738825856695,-500.0,0.00014657,2]
[351869857,1738825856704,-500.0,0.00014657,2]
[351869859,1738825856714,-500.0,0.00014657,2]
[351869860,1738825856723,-151.0,0.00014657,2]
[351869863,1738825856735,-11152.79,0.00014657,2]
[351869864,1738825856744,-209.326884,0.00014657,2]
[351869866,1738825856754,-4920.29,0.00014657,2]
[351869868,1738825856763,-151.0,0.00014657,2]
[351869870,1738825856774,-500.0,0.00014657,2]
[351869873,1738825856784,-812.74,0.00014657,2]
[351869874,1738825856794,-157.612997,0.00014657,2]
[351869876,1738825856804,-3422.15,0.00014657,2]
[351869878,1738825856814,-151.0,0.00014657,2]
[351869880,1738825856824,-500.0,0.00014657,2]
[351869882,1738825856833,-157.612997,0.00014657,2]
[351869884,1738825856842,-500.0,0.00014657,2]
[351869886,1738825856853,-1896.21,0.00014657,2]
[351869888,1738825856864,-20580.38,0.00014657,2]
[351869890,1738825856874,-4042.47,0.00014657,2]
[351869892,1738825856884,-151.0,0.00014657,2]
[351869894,1738825856894,-2055.52,0.00014657,2]
[351869897,1738825856903,-151.0,0.00014657,2]
[351869898,1738825856912,-529.96,0.00014657,2]
[351869901,1738825856922,-931.34,0.00014657,2]
[351869902,1738825856932,-690.97,0.00014657,2]
[351869905,1738825856942,-1864.33,0.00014657,2]
[351869907,1738825856951,-2520.04,0.00014657,2]
[351869908,1738825856961,-1724.05,0.00014657,2]
[351869910,1738825856971,-500.0,0.00014657,2]
[351869912,1738825856981,-500.0,0.00014657,2]
[351869914,1738825856992,-786.52,0.00014657,2]
[351869917,1738825857002,-500.0,0.00014657,2]
[351869918,1738825857012,-4900.42,0.00014657,2]
[351869921,1738825857023,-1274.05,0.00014657,2]
[351869922,1738825857032,-500.0,0.00014657,2]
[351869924,1738825857041,-547.89,0.00014657,2]
[351869926,1738825857052,-500.0,0.00014657,2]
[351869928,1738825857062,-500.0,0.00014657,2]
[351869930,1738825857071,-500.0,0.00014657,2]
[351869932,1738825857081,-332.423192,0.00014657,2]
[351869934,1738825857090,-1130.0,0.00014657,2]
[351869936,1738825857099,-3673.51,0.00014657,2]
[351869938,1738825857110,-332.423192,0.00014657,2]
[351869940,1738825857121,-1869.5,0.00014657,2]
[351869942,1738825857130,-500.0,0.00014657,2]
[351869944,1738825857140,-1788.71,0.00014657,2]
[351869946,1738825857150,-151.0,0.00014657,2]
[351869948,1738825857159,-500.0,0.00014657,2]
[351869950,1738825857169,-500.0,0.00014657,2]
[351869952,1738825857178,-151.0,0.00014657,2]
[351869954,1738825857188,-895.25,0.00014657,2]
[351869956,1738825857198,-4444.61,0.00014657,2]
[351869958,1738825857208,-601.14,0.00014657,2]
[351869960,1738825857218,-500.0,0.00014657,2]
[351869962,1738825857227,-500.0,0.00014657,2]
[351869964,1738825857237,-819.49,0.00014657,2]
[351869966,1738825857247,-2035.28,0.00014657,2]
[351869968,1738825857257,-1557.87,0.00014657,2]
[351869970,1738825857266,-500.0,0.00014657,2]
[351869972,1738825857276,-9265.9,0.00014657,2]
[351869974,1738825857286,-500.0,0.00014657,2]
[351869976,1738825857296,-500.0,0.00014657,2]
[351869978,1738825857306,-500.0,0.00014657,2]
[351869980,1738825857315,-55137.81,0.00014657,2]
[351869982,1738825857325,-500.0,0.00014657,2]
[351869984,1738825857334,-500.0,0.00014657,2]
[351869986,1738825857344,-925.06,0.00014657,2]
[351869988,1738825857353,-500.0,0.00014657,2]
[351869990,1738825857364,-500.0,0.00014657,2]
[351869992,1738825857374,-2866.45,0.00014657,2]
[351869994,1738825857384,-687.62,0.00014657,2]
[351869996,1738825857394,-500.0,0.00014657,2]
[351869998,1738825857403,-2324.04,0.00014657,2]
[351870000,1738825857413,-548.52,0.00014657,2]
[351870002,1738825857423,-2155.77,0.00014657,2]
[351870004,1738825857433,-1645.36,0.00014657,2]
[351870006,1738825857443,-500.0,0.00014657,2]
[351870008,1738825857452,-5389.6,0.00014657,2]
[351870010,1738825857462,-500.0,0.00014657,2]
[351870012,1738825857471,-500.0,0.00014657,2]
[351870014,1738825857481,-19603.76,0.00014657,2]
[351870016,1738825857491,-500.0,0.00014657,2]
[351870018,1738825857500,-2713.5,0.00014657,2]
[351870032,1738825857635,-512.22,0.00014657,2]
[351870034,1738825857645,-500.0,0.00014657,2]
[351870037,1738825857655,-733.50078649,0.0001468,2]
[351870038,1738825857664,-424.2606222,0.000147,2]
[351870040,1738825857674,-2073.00867391,0.00014728,2]
[351870043,1738825857686,-11618.08716741,0.00014747,2]
[351870045,1738825857695,-1000.0,0.00014752,2]
[351870047,1738825857704,-163.5183233,0.00014781,2]
[351870049,1738825857714,-500.0,0.00014794,2]
[351870051,1738825857723,-565.30798202,0.00014794,2]
[351870053,1738825857733,-500.0,0.00014794,2]
[351870055,1738825857743,-500.0,0.00014794,2]
[351870057,1738825857752,-796.27,0.00014794,2]
[351870059,1738825857761,-500.0,0.00014794,2]
[351870061,1738825857771,-500.0,0.00014794,2]
[351870063,1738825857780,-500.0,0.00014794,2]
[351870065,1738825857791,-500.0,0.00014794,2]
[351870066,1738825857800,-500.0,0.00014794,2]
[351870068,1738825857810,-500.0,0.00014794,2]
[351870070,1738825857819,-500.0,0.00014794,2]
[351870073,1738825857829,-500.0,0.00014794,2]
[351870075,1738825857839,-500.0,0.00014794,2]
[351870077,1738825857849,-500.0,0.00014794,2]
[351870079,1738825857858,-500.0,0.00014794,2]
[351870081,1738825857869,-500.0,0.00014794,2]
[351870083,1738825857878,-500.0,0.00014794,2]
[351870085,1738825857888,-500.0,0.00014794,2]
[351870087,1738825857897,-1663.81,0.00014794,2]
[351870089,1738825857907,-506.64,0.00014794,2]
[351870091,1738825857916,-1635.87,0.00014794,2]
[351870092,1738825857925,-892.58,0.00014794,2]
[351870094,1738825857935,-500.0,0.00014794,2]
[351870096,1738825857944,-647.02,0.00014794,2]
[351870098,1738825857954,-500.0,0.00014794,2]
[351870100,1738825857963,-500.0,0.00014794,2]
[351870102,1738825857972,-515.26,0.00014794,2]
[351870104,1738825857982,-500.0,0.00014794,2]
[351870106,1738825857991,-151.0,0.00014794,2]
[351870108,1738825858001,-500.0,0.00014794,2]
[351870110,1738825858010,-514.87344771,0.00014794,2]
[351870113,1738825858020,-500.0,0.00014794,2]
[351870115,1738825858030,-1205.63,0.00014794,2]
[351870117,1738825858039,-500.0,0.00014794,2]
[351870119,1738825858049,-151.0,0.00014794,2]
[351870121,1738825858058,-1952.69,0.00014794,2]
[351870122,1738825858067,-334.99089184,0.00014794,2]
[351870124,1738825858077,-500.0,0.00014794,2]
[351870127,1738825858087,-500.0,0.00014794,2]
[351870129,1738825858097,-776.18,0.00014794,2]
[351870131,1738825858107,-500.0,0.00014794,2]
[351870133,1738825858120,-556.32,0.00014794,2]
[351870135,1738825858130,-1914.57,0.00014794,2]
[351870137,1738825858139,-804.02,0.00014794,2]
[351870139,1738825858150,-500.0,0.00014794,2]
[351870141,1738825858160,-500.0,0.00014794,2]
[351870143,1738825858170,-764.63,0.00014794,2]
[351870145,1738825858179,-932.09,0.00014794,2]
[351870147,1738825858191,-500.0,0.00014794,2]
[351870149,1738825858202,-500.0,0.00014794,2]
[351870151,1738825858212,-703.39,0.00014794,2]
[351870153,1738825858222,-506.27,0.00014794,2]
[351870155,1738825858232,-500.0,0.00014794,2]
[351870157,1738825858241,-1302.83,0.00014794,2]
[351870159,1738825858251,-679.45,0.00014794,2]
[351870161,1738825858263,-500.0,0.00014794,2]
[351870163,1738825858273,-500.0,0.00014794,2]
[351870165,1738825858283,-648.58,0.00014794,2]
[351870167,1738825858293,-500.0,0.00014794,2]
[351870169,1738825858302,-500.0,0.00014794,2]
[351870171,1738825858312,-500.0,0.00014794,2]
[351870173,1738825858322,-976.08,0.00014794,2]
[351870175,1738825858331,-1584.55,0.00014794,2]
[351870177,1738825858341,-536.77,0.00014794,2]
[351870179,1738825858350,-500.0,0.00014794,2]
[351870181,1738825858361,-515.81,0.00014794,2]
[351870183,1738825858371,-500.0,0.00014794,2]
[351870185,1738825858381,-500.0,0.00014794,2]
[351870186,1738825858390,-500.0,0.00014794,2]
[351870187,1738825858399,-500.0,0.00014794,2]
[351870188,1738825858409,-859.86,0.00014794,2]
[351870189,1738825858418,-1650.47,0.00014794,2]
[351870190,1738825858428,-1397.76,0.00014794,2]
[351870191,1738825858437,-341.74936037,0.00014794,2]
[351870192,1738825858447,-1515.33,0.00014794,2]
[351870193,1738825858455,-500.0,0.00014794,2]
[351870194,1738825858465,-500.0,0.00014794,2]
[351870196,1738825858475,-5965.69,0.00014794,2]
[351870198,1738825858485,-500.0,0.00014794,2]
[351870200,1738825858495,-521.34,0.00014794,2]
[351870202,1738825858506,-732.15,0.00014794,2]
[351870204,1738825858515,-860.72,0.00014794,2]
[351870206,1738825858525,-500.0,0.00014794,2]
[351870208,1738825858535,-500.0,0.00014794,2]
[351870210,1738825858545,-1976.58,0.00014794,2]
[351870212,1738825858555,-500.0,0.00014794,2]
[351870214,1738825858565,-2682.31,0.00014794,2]
[351870216,1738825858575,-500.0,0.00014794,2]
[351870218,1738825858584,-596.18,0.00014794,2]
[351870220,1738825858593,-500.0,0.00014794,2]
[351870222,1738825858603,-500.0,0.00014794,2]
[351870224,1738825858613,-500.0,0.00014794,2]
[351870226,1738825858623,-969.79,0.00014794,2]
[351870228,1738825858633,-739.06,0.00014794,2]
[351870230,1738825858642,-500.0,0.00014794,2]
[351870232,1738825858652,-606.33,0.00014794,2]
[351870234,1738825858661,-500.0,0.00014794,2]
[351870236,1738825858671,-500.0,0.00014794,2]
[351870238,1738825858681,-500.0,0.00014794,2]
[351870240,1738825858691,-11152.79,0.00014794,2]
[351870242,1738825858700,-4920.29,0.00014794,2]
[351870244,1738825858710,-500.0,0.00014794,2]
[351870246,1738825858719,-812.74,0.00014794,2]
[351870248,1738825858729,-3422.15,0.00014794,2]
[351870250,1738825858738,-500.0,0.00014794,2]
[351870252,1738825858747,-500.0,0.00014794,2]
[351870254,1738825858757,-1896.21,0.00014794,2]
[351870256,1738825858766,-20580.38,0.00014794,2]
[351870258,1738825858775,-4042.47,0.00014794,2]
[351870260,1738825858785,-2055.52,0.00014794,2]
[351870262,1738825858794,-529.96,0.00014794,2]
[351870264,1738825858804,-931.34,0.00014794,2]
[351870266,1738825858814,-690.97,0.00014794,2]
[351870268,1738825858824,-1864.33,0.00014794,2]
[351870270,1738825858833,-1724.05,0.00014794,2]
[351870272,1738825858843,-2520.04,0.00014794,2]
[351870274,1738825858852,-500.0,0.00014794,2]
[351870276,1738825858863,-323.50840547,0.00014794,2]
[351870278,1738825858872,-786.52,0.00014794,2]
[351870280,1738825858882,-500.0,0.00014794,2]
[351870282,1738825858891,-4900.42,0.00014794,2]
[351870284,1738825858901,-1274.05,0.00014794,2]
[351870286,1738825858910,-218.15508321,0.00014794,2]
[351870288,1738825858920,-547.89,0.00014794,2]
[351870290,1738825858929,-500.0,0.00014794,2]
[351870292,1738825858939,-500.0,0.00014794,2]
[351870294,1738825858949,-500.0,0.00014794,2]
[351870296,1738825858958,-332.423192,0.00014794,2]
[351870298,1738825858967,-1130.0,0.00014794,2]
[351870300,1738825858977,-3673.51,0.00014794,2]
[351870302,1738825858987,-332.423192,0.00014794,2]
[351870304,1738825858996,-1869.5,0.00014794,2]
[351870306,1738825859006,-436.87678739,0.00014794,2]
[351870308,1738825859018,-1788.71,0.00014794,2]
[351870310,1738825859028,-151.0,0.00014794,2]
[351870312,1738825859038,-500.0,0.00014794,2]
[351870314,1738825859048,-500.0,0.00014794,2]
[351870316,1738825859057,-151.0,0.00014794,2]
[351870318,1738825859067,-895.25,0.00014794,2]
[351870321,1738825859076,-151.0,0.00014794,2]
[351870323,1738825859086,-4444.61,0.00014794,2]
[351870325,1738825859095,-601.14,0.00014794,2]
[351870327,1738825859105,-500.0,0.00014794,2]
[351870329,1738825859118,-500.0,0.00014794,2]
[351870331,1738825859127,-819.49,0.00014794,2]
[351870333,1738825859137,-2035.28,0.00014794,2]
[351870335,1738825859146,-1557.87,0.00014794,2]
[351870337,1738825859155,-500.0,0.00014794,2]
[351870339,1738825859165,-9265.9,0.00014794,2]
[351870341,1738825859174,-354.71076008,0.00014794,2]
[351870343,1738825859184,-500.0,0.00014794,2]
[351870345,1738825859194,-500.0,0.00014794,2]
[351870347,1738825859204,-55137.81,0.00014794,2]
[351870349,1738825859213,-199.653737,0.00014794,2]
[351870350,1738825859223,-500.0,0.00014794,2]
[351870352,1738825859233,-199.653737,0.00014794,2]
[351870355,1738825859243,-500.0,0.00014794,2]
[351870357,1738825859253,-925.06,0.00014794,2]
[351870358,1738825859264,-500.0,0.00014794,2]
[351870360,1738825859274,-500.0,0.00014794,2]
[351870362,1738825859284,-2866.45,0.00014794,2]
[351870365,1738825859294,-687.62,0.00014794,2]
[351870366,1738825859303,-500.0,0.00014794,2]
[351870369,1738825859313,-2324.04,0.00014794,2]
[351870370,1738825859323,-548.52,0.00014794,2]
[351870373,1738825859332,-2155.77,0.00014794,2]
[351870375,1738825859342,-1645.36,0.00014794,2]
[351870377,1738825859351,-500.0,0.00014794,2]
[351870379,1738825859361,-5389.6,0.00014794,2]
[351870380,1738825859371,-151.0,0.00014794,2]
[351870383,1738825859380,-500.0,0.00014794,2]
[351870385,1738825859389,-378.90482166,0.00014794,2]
[351870387,1738825859399,-19603.76,0.00014794,2]
[351870389,1738825859408,-345.20026415,0.00014794,2]
[351870391,1738825859417,-2713.5,0.00014794,2]
[351870393,1738825859427,-512.22,0.00014794,2]
[351870395,1738825859436,-645.03484567,0.00014794,2]
[351870397,1738825859445,-330.41148343,0.00014797,2]
[351870399,1738825859455,-336.01,0.00014814,2]
[351870401,1738825859464,-249.23,0.00014817,2]
[351870403,1738825859473,-250.0,0.00014863,2]
[351870405,1738825859483,-156.1,0.00014863,2]
[351870407,1738825859492,-2073.00867391,0.00014866,2]
[351870409,1738825859501,-1000.0,0.00014883,2]
[351870411,1738825859510,-1000.0,0.00014887,2]
[351870413,1738825859520,-573.3031144,0.00014889,2]
[351870415,1738825859529,-2000.0,0.000149,2]
[351870416,1738825859538,-271.6681458,0.000149,2]
[351870418,1738825859547,-271.66814578,0.000149,2]
[351870420,1738825859556,-271.66814578,0.000149,2]
[351870423,1738825859566,-153.91001934,0.0001493,2]
[351870425,1738825859575,-500.0,0.00014931,2]
[351870427,1738825859585,-500.0,0.00014931,2]
[351870428,1738825859594,-184.54675569,0.00014931,2]
[351870430,1738825859603,-796.27,0.00014931,2]
[351870433,1738825859613,-500.0,0.00014931,2]
[351870435,1738825859623,-500.0,0.00014931,2]
[351870436,1738825859632,-500.0,0.00014931,2]
[351870438,1738825859641,-500.0,0.00014931,2]
[351870440,1738825859651,-549.10874071,0.00014931,2]
[351870442,1738825859660,-500.0,0.00014931,2]
[351870445,1738825859670,-500.0,0.00014931,2]
[351870447,1738825859679,-500.0,0.00014931,2]
[351870449,1738825859689,-500.0,0.00014931,2]
[351870451,1738825859698,-500.0,0.00014931,2]
[351870453,1738825859708,-500.0,0.00014931,2]
[351870455,1738825859717,-500.0,0.00014931,2]
[351870456,1738825859727,-500.0,0.00014931,2]
[351870459,1738825859736,-500.0,0.00014931,2]
[351870461,1738825859745,-1663.81,0.00014931,2]
[351870463,1738825859762,-506.64,0.00014931,2]
[351870465,1738825859774,-1635.87,0.00014931,2]
[351870467,1738825859783,-150.15,0.00014931,2]
[351870469,1738825859793,-892.58,0.00014931,2]
[351870471,1738825859803,-500.0,0.00014931,2]
[351870473,1738825859812,-647.02,0.00014931,2]
[351870475,1738825859821,-500.0,0.00014931,2]
[351870477,1738825859831,-500.0,0.00014931,2]
[351870479,1738825859841,-515.26,0.00014931,2]
[351870481,1738825859850,-500.0,0.00014931,2]
[351870483,1738825859860,-500.0,0.00014931,2]
[351870485,1738825859873,-500.0,0.00014931,2]
[351870487,1738825859883,-500.0,0.00014931,2]
[351870489,1738825859892,-1205.63,0.00014931,2]
[351870491,1738825859902,-500.0,0.00014931,2]
[351870493,1738825859911,-1952.69,0.00014931,2]
[351870495,1738825859920,-500.0,0.00014931,2]
[351870497,1738825859931,-500.0,0.00014931,2]
[351870499,1738825859940,-776.18,0.00014931,2]
[351870501,1738825859950,-500.0,0.00014931,2]
[351870503,1738825859959,-556.32,0.00014931,2]
[351870505,1738825859969,-1914.57,0.00014931,2]
[351870507,1738825859979,-804.02,0.00014931,2]
[351870509,1738825859988,-500.0,0.00014931,2]
[351870511,1738825859997,-500.0,0.00014931,2]
[351870513,1738825860006,-764.63,0.00014931,2]